[Event "Warsaw Chess Open-B 2022"]
[Site "Warsaw"]
[Date "2022.07.20"]
[Round "3.8"]
[White "Giemza, Julia"]
[Black "Martellier, Charles"]
[Result "0-1"]
[ECO "B40"]
[WhiteElo "1524"]
[BlackElo "1791"]
[Annotator "NA RC COMBH"]
[PlyCount "74"]
[EventDate "2022.07.18"]
[EventType "swiss"]
[EventCountry "POL"]
[SourceTitle "playchess.com"]
[Source "ChessBase"]
[SourceQuality "1"]
[TimeControl "40/5400+30:1800+30"]

1. e4 {[%emt 0:00:01]} c5 {[%emt 0:00:21]} 2. Nf3 {[%emt 0:00:05]} e6 {[%emt 0:00:05]} 3. d4 {[%emt 0:00:18]} cxd4 {[%emt 0:00:06]} 4. Nxd4 {[%emt 0:00:04]} Nf6 {[%emt 0:00:09]} 5. Bd3 {[%emt 0:02:07]} Nc6 {[%emt 0:01:56]} 6. Nxc6 {[%emt 0:05:48]} dxc6 {[%emt 0:01:28]} 7. O-O {[%emt 0:01:23]} e5 {[%emt 0:00:44]} 8. Bg5 {[%emt 0:01:50]} h6 {[%emt 0:02:14]} 9. Bh4 {[%emt 0:01:20]} Be7 {[%emt 0:05:39]} 10. Nd2 {[%emt 0:03:59]} Qc7 {[%emt 0:23:39]} 11. Nc4 {[%emt 0:07:45]} Be6 {[%emt 0:05:15]} 12. Ne3 Rd8 {[%emt 0:10:12]} 13. Qe2 {[%emt 0:08:12]} O-O {[%emt 0:00:59]} 14. Nf5 {[%emt 0:06:43]} Bxf5 {[%emt 0:04:59]} 15. exf5 {[%emt 0:00:15]} Nd5 {[%emt 0:06:02]} 16. Bg3 {[%emt 0:08:02]} Nf4 17. Bxf4 {[%emt 0:03:39]} exf4 {[%emt 0:01:26]} 18. Qf3 {[%emt 0:02:41]} Bf6 {[%emt 0:00:41]} 19. Rab1 {[%emt 0:02:07]} Rfe8 {[%emt 0:00:54]} 20. c3 {[%emt 0:04:45]} Rd5 {[%emt 0:05:25]} 21. Rbd1 {[%emt 0:04:39]} Red8 {[%emt 0:00:51]} 22. Bb1 {[%emt 0:06:51]} Rd2 {[%emt 0:03:12]} 23. Rxd2 {[%emt 0:02:27]} Rxd2 {[%emt 0:00:08]} 24. b3 {[%emt 0:00:06]} Qe5 {[%emt 0:01:32]} 25. c4 {[%emt 0:03:25]} Qd4 {[%emt 0:02:08]} 26. Qg4 {[%emt 0:03:08]} Bd8 {[%emt 0:05:12]} 27. f6 {[%emt 0:03:36]} Qxf6 {[%emt 0:02:11]} 28. h3 {[%emt 0:04:43]} g6 {[%emt 0:01:55]} 29. c5 {[%emt 0:03:40]} h5 {[%emt 0:00:47]} 30. Qf3 {[%emt 0:00:55]} Qd4 {[%emt 0:01:00]} 31. Re1 {[%emt 0:02:39]} Bh4 {[%emt 0:01:46]} 32. Rf1 {[%emt 0:00:45]} Kg7 {[%emt 0:01:37]} 33. a3 {[%emt 0:00:57]} a5 {[%emt 0:00:46]} 34. a4 {[%emt 0:01:06]} Bg3 {[%emt 0:01:28]} 35. Be4 {[%emt 0:02:45]} f5 {[%emt 0:00:29]} 36. Bb1 {[%emt 0:00:26]} Kh6 {[%emt 0:00:18]} 37. Rc1 {[%emt 0:00:59]} Rxf2 {[%emt 0:01:10]} 0-1

[Event "Warsaw Chess Open-B 2022"]
[Site "Warsaw"]
[Date "2022.07.21"]
[Round "4.1"]
[White "Martellier, Charles"]
[Black "Kowalczyk, Adam"]
[Result "0-1"]
[ECO "A57"]
[WhiteElo "1791"]
[BlackElo "1944"]
[Annotator "TA"]
[PlyCount "88"]
[EventDate "2022.07.18"]
[EventType "swiss"]
[EventCountry "POL"]
[SourceTitle "playchess.com"]
[Source "ChessBase"]
[SourceQuality "1"]
[TimeControl "40/5400+30:1800+30"]

{[%evp 18,87,0,5,45,-84,-73,-87,-92,-137,-130,-211,-62,-55,-55,-51,-46,-55,-37,-78,-65,-133,-132,-125,-117,-118,-111,-116,-133,-406,-428,-566,-336,-343,-148,-135,-115,-220,-225,-208,-207,-323,-316,-318,-220,-187,-87,-112,-112,-180,-170,-191,-192,-250,-216,-282,-196,-276,-275,-328,-280,-836,-843,-934,-853,-860,-291,-29993,-29994,-29998,-29999,-29999]} 1. d4 {[%emt 0:00:06]} Nf6 {[%emt 0:00:07]} 2. c4 {[%emt 0:00:05]} c5 {[%emt 0:00:30]} 3. d5 {[%emt 0:00:08]} b5 {[%emt 0:00:04]} 4. cxb5 {[%emt 0:00:13]} a6 {[%emt 0:00:04]} 5. f3 {[%emt 0:00:25]} e6 {[%emt 0:04:37]} 6. e4 {[%emt 0:06:01]} exd5 {[%emt 0:11:46]} 7. e5 {[%emt 0:00:46]} Qe7 {[%emt 0:00:05]} 8. Nc3 {[%emt 0:00:13]} Ng8 {[%emt 0:00:05]} 9. Qe2 {[%emt 0:02:35]} Bb7 {[%emt 0:03:39]} 10. Nh3 {[%emt 0:03:32] White wants to play Nf4.} c4 {[%emt 0:02:53] [#] A57: Benko/Volga Gambit.} 11. Qe3 $146 {[%emt 0:26:11]} (11. Nf4 $14 {stays ahead.} Qc5 12. Nfxd5 Bxd5 13. Be3) ({Predecessor:} 11. Nf4 Qc5 12. Nfxd5 Bxd5 13. Be3 Qb4 14. a3 Qa5 15. Bd2 Be6 16. Nd5 Qd8 17. Qxc4 Ra7 18. Rc1 axb5 {1-0 (41) Nakamura,H (2704)-Vachier Lagrave,M (2716) Cap d'Agde 2008}) 11... Qc5 $17 {[%emt 0:19:45]} (11... axb5 $6 12. Nf4 $11) 12. Qxc5 {[%emt 0:02:06]} Bxc5 {[%emt 0:00:02] Black is better.} 13. Nf4 {[%emt 0:02:25]} Ne7 {[%emt 0:00:06]} 14. Nfe2 {[%emt 0:12:55]} (14. bxa6 $17 Nxa6 15. b3) 14... d4 {[%emt 0:05:06]} ({Better is} 14... axb5 $19 {aiming for ...Bc6.} 15. Nxb5 O-O) 15. Na4 $1 $15 {[%emt 0:06:59]} Bb4+ {[%emt 0:00:19]} 16. Bd2 {[%emt 0:00:22]} Bxd2+ {[%emt 0:02:23]} 17. Kxd2 {[%emt 0:00:04]} d3 {[%emt 0:00:11]} 18. Nd4 {[%emt 0:02:59] [#] Threatens to win with Nb6.} axb5 {[%emt 0:01:32]} 19. Nxb5 {[%emt 0:00:36]} Rxa4 $17 {[%emt 0:00:29][%cal Ba8a4,Ba4b4,Bb4b2,Bb2c2][%mdl 32]} 20. Nd6+ {[%emt 0:00:20]} Kf8 {[%emt 0:00:06]} 21. Nxb7 {[%emt 0:00:05]} Rb4 $36 {[%emt 0:00:10][%csl LRb2,LRb7][%mdl 2048] Black has strong initiative.} 22. Nd6 {[%emt 0:00:45][%cal Ob2b3]} Rxb2+ {[%emt 0:00:44]} 23. Kc3 $2 {[%emt 0:00:45][%mdl 8192]} (23. Kd1 $17 {is the only way for White.}) 23... Rc2+ $19 {[%emt 0:00:08]} 24. Kb4 {[%emt 0:00:57]} Nd5+ {[%emt 0:23:54]} 25. Kc5 {[%emt 0:01:40]} Ne3 {[%emt 0:00:06] Pair of Knights!} (25... Nf4 $19 26. g3 Ne6+ 27. Kd5 Nc6) 26. Kd4 $17 {[%emt 0:01:05]} Nxf1 {[%emt 0:04:08] Black is much more active. The white rooks are badly placed.} ({Inferior is} 26... Nxg2 27. Nxc4 Nf4 28. Bxd3 Nc6+ 29. Ke4 Nxd3 30. Kxd3 Nb4+ 31. Kd4 $15) 27. Rhxf1 {[%emt 0:01:20]} (27. Nxc4 $17 Ke7 28. Raxf1) 27... Nc6+ $19 {[%emt 0:00:05]} ({And not} 27... Rxg2 28. Nxc4 Nc6+ 29. Kxd3 $17) 28. Kd5 {[%emt 0:02:31]} c3 {[%emt 0:01:19]} 29. Kc4 {[%emt 0:02:11]} (29. Rg1 {was worth a try.}) 29... Nxe5+ {[%emt 0:03:48]} 30. Kd4 {[%emt 0:00:05]} f6 {[%emt 0:00:13]} 31. f4 {[%emt 0:00:12]} Nf7 {[%emt 0:00:13]} ({Much less strong is} 31... Rxg2 32. fxe5 c2 33. Kxd3 $18) (31... Nc6+ $19 {has better winning chances.} 32. Kc4 h5) 32. Ne4 {[%emt 0:05:33]} Rxg2 {[%emt 0:00:59]} 33. Kxc3 {[%emt 0:00:37]} (33. Rf2 $17 Rxf2 34. Nxf2) 33... Rxh2 {[%emt 0:00:37]} 34. Kxd3 {[%emt 0:00:26]} Rh3+ {[%emt 0:06:28]} 35. Kd4 {[%emt 0:00:22]} (35. Ke2 {might work better.}) 35... Ra3 {[%emt 0:00:12]} 36. Nc5 {[%emt 0:01:27]} g6 {[%emt 0:00:56]} 37. Nxd7+ {[%emt 0:01:30]} (37. Rfb1 $142) 37... Kg7 {[%emt 0:00:13] White must now prevent ...Rd8.} 38. Kc4 {[%emt 0:01:24]} Rha8 {[%emt 0:00:23]} 39. Rf2 $2 {[%emt 0:02:31]} (39. Nb6 Rb8 40. Kc5) 39... Nd6+ {[%emt 0:00:55]} 40. Kd5 {[%emt 0:00:56]} Rd3+ {[%emt 0:00:46]} 41. Kc6 {[%emt 0:30:24]} Ra6+ $2 {[%emt 0:30:23]} (41... Rc8+ 42. Kb6 Rdc3) 42. Kc7 $2 {[%emt 0:06:59] [#]} (42. Nb6 $19) 42... Rc3+ {[%emt 0:00:08] Black mates.} 43. Kd8 {[%emt 0:00:48]} Rc8+ {[%emt 0:00:06]} 44. Ke7 Re8# {Weighted Error Value: White=0.74/Black=0.43} 0-1

[Event "Warsaw Chess Open-B 2022"]
[Site "Warsaw"]
[Date "2022.07.21"]
[Round "4.2"]
[White "Pawicka, Magdalena"]
[Black "Radecki, Wojciech"]
[Result "1-0"]
[ECO "C53"]
[WhiteElo "1781"]
[BlackElo "1907"]
[Annotator "TA"]
[PlyCount "145"]
[EventDate "2022.07.18"]
[EventType "swiss"]
[EventCountry "POL"]
[SourceTitle "playchess.com"]
[Source "ChessBase"]
[SourceQuality "1"]
[TimeControl "40/5400+30:1800+30"]

{[%evp 18,145,33,24,34,36,25,34,52,39,53,-32,-27,-117,-116,-122,-118,-105,-85,-101,-27,-28,-14,-9,179,156,174,178,177,166,173,177,174,166,178,170,165,172,170,160,165,164,152,95,107,78,78,67,78,78,78,78,78,78,78,78,78,78,143,148,189,178,194,181,222,174,227,222,241,245,254,246,285,300,285,268,258,245,256,196,332,345,545,395,398,515,462,389,269,258,235,245,235,225,515,514,513,496,616,704,1070,1066,1019,981,928,857,1337,1329,1158,1148,29983,29984,29967,7779,29985,29986,29984,29985,29985,29986,29986,29987,29986,29986,29988,29989,29989,29990,29990,29991]} 1. e4 {[%emt 0:00:02]} e5 {[%emt 0:00:07]} 2. Nf3 Nc6 {[%emt 0:00:14]} 3. Bc4 {[%emt 0:00:55]} Bc5 {[%emt 0:00:28]} 4. c3 {[%emt 0:00:11]} d6 {[%emt 0:02:35]} 5. d4 {[%emt 0:07:17]} exd4 {[%emt 0:00:27]} 6. cxd4 {[%emt 0:00:13]} Bb4+ {[%emt 0:00:26]} 7. Bd2 {[%emt 0:06:22]} Bxd2+ {[%emt 0:00:33]} 8. Nbxd2 {[%emt 0:00:32]} Nf6 {[%emt 0:00:27]} 9. O-O {[%emt 0:05:47]} O-O {[%emt 0:02:11]} 10. Re1 {[%emt 0:06:11]} Bg4 {[%emt 0:05:35] C54: Giuoco Piano: 4 c3 Nf6, main lines with 5 d4 and 5 d3.} 11. h3 {[%emt 0:03:36]} Bh5 {[%emt 0:00:51]} 12. e5 {[%emt 0:03:59]} dxe5 {[%emt 0:00:57] White is slightly better.} 13. dxe5 {[%emt 0:00:16]} Nd5 {[%emt 0:00:47]} 14. Nf1 {[%emt 0:06:42] [#]} (14. Qc2 $14) 14... Nf4 $146 {[%emt 0:01:35]} ({Predecessor:} 14... Nb6 15. Bd3 Re8 16. g4 Bg6 17. Bxg6 hxg6 18. Qb3 Qd5 19. Qxd5 Nxd5 20. Rad1 Nf4 {½-½ (43) Kochinyan,H (1408)-Toth,N (1966) Mamaia 2017}) 15. Ng3 {[%emt 0:07:07]} (15. N1h2 $1 $11) 15... Qxd1 $17 {[%emt 0:01:17]} 16. Raxd1 Bxf3 {[%emt 0:00:18]} 17. gxf3 {[%emt 0:01:27]} Nxh3+ {[%emt 0:00:03] Pair of Knights!} 18. Kf1 {[%emt 0:01:19]} Nf4 {[%emt 0:03:49]} ({Black should try} 18... Rfd8 $17 {Strongly threatening ...Rxd1.} 19. Bd5 (19. e6 Kf8 $17) 19... Nf4 20. Bxc6 bxc6) 19. Rd7 $1 $11 {[%emt 0:01:24]} Rac8 {[%emt 0:00:27]} 20. Nf5 {[%emt 0:03:40]} Nb8 $2 {[#]} (20... h6 $11) 21. Rd4 $1 $36 {[%mdl 2048] White has strong initiative.} Ne6 {[%emt 0:28:28]} 22. Bxe6 {[%emt 0:06:25]} (22. Ne7+ Kh8 23. Bxe6 Rce8 24. Bxf7 Rxe7 $11) 22... fxe6 {[%emt 0:00:03]} 23. Ne7+ {[%emt 0:00:06]} Kf7 {[%emt 0:00:06]} 24. Nxc8 {[%emt 0:00:18]} Rxc8 {[%emt 0:00:02][%mdl 4096] Endgame KRR-KRN} 25. f4 {[%emt 0:02:29]} Ke7 {[%emt 0:00:33]} 26. Red1 {[%emt 0:01:16]} c5 {[%emt 0:05:39]} 27. R4d3 {[%emt 0:03:09]} Rc7 {[%emt 0:01:10]} 28. Ke2 {[%emt 0:04:04]} Nc6 {[%emt 0:00:15]} 29. Rc1 {[%emt 0:01:53]} Nb4 {[%emt 0:01:23]} 30. Ra3 {[%emt 0:00:35]} ({White should play} 30. Rd6) 30... b6 $16 {[%emt 0:00:19]} 31. Rh1 {[%emt 0:05:15]} h6 {[%emt 0:00:21]} 32. Rg3 {[%emt 0:00:11]} Kf7 {[%emt 0:00:17]} 33. Rhg1 {[%emt 0:00:19]} Kf8 {[%emt 0:00:07]} 34. Rg6 {[%emt 0:01:25]} Re7 {[%emt 0:00:12]} 35. a3 {[%emt 0:01:14]} Nc6 {[%emt 0:00:43]} 36. Ke3 {[%emt 0:01:40]} Nd4 {[%emt 0:00:21]} 37. Ke4 {[%emt 0:01:20]} Rf7 {[%emt 0:00:45]} (37... a5 $142) 38. Rd1 {[%emt 0:01:40]} Ke7 {[%emt 0:02:04]} 39. Rd2 {[%emt 0:01:03]} Kf8 {[%emt 0:03:20] [#]} 40. b4 $1 {[%emt 0:01:22]} Re7 {[%emt 0:00:52]} 41. bxc5 {[%emt 0:31:21]} bxc5 {[%emt 0:30:01]} (41... Nb3 $142 42. Rd8+ Kf7) 42. Rb2 $18 {[%emt 0:03:20]} Rd7 {[%emt 0:05:54]} 43. Rg3 {[%emt 0:01:49]} Kf7 {[%emt 0:03:54]} 44. Rc3 {[%emt 0:01:08]} Rc7 {[%emt 0:00:52]} 45. Rb1 {[%emt 0:00:51]} Kg6 {[%emt 0:03:02]} 46. Rg1+ {[%emt 0:05:08]} Kh7 {[%emt 0:00:40]} 47. Rd1 {[%emt 0:01:00] Threatens to win with Rxd4.} Nb5 {[%emt 0:05:39]} 48. Rb3 {[%emt 0:01:18]} a6 {[%emt 0:00:27]} (48... Nd4 $142 49. Rc3 Rf7 50. Rxc5 Ne2) 49. a4 {[%emt 0:01:00]} c4 {[%emt 0:03:45]} (49... Nd4 $142) 50. Rg3 {[%emt 0:01:30]} ({Worse is} 50. axb5 cxb3 51. bxa6 Rc4+ 52. Kf3 Ra4 $11) 50... Na7 {[%emt 0:00:05]} 51. Rc3 {[%emt 0:00:52]} ({Not} 51. f5 exf5+ 52. Kxf5 c3 $18) 51... Nc8 {[%emt 0:03:00]} 52. Rdc1 {[%emt 0:00:07]} Nb6 {[%emt 0:00:11]} 53. a5 {[%emt 0:00:07]} Nd5 {[%emt 0:00:05]} 54. Rxc4 {[%emt 0:00:06]} Rf7 {[%emt 0:00:07]} 55. Kf3 {[%emt 0:01:52]} g5 $2 {[%emt 0:00:11]} (55... Kg6 56. Rb1 Kf5) 56. Rc6 {[%emt 0:00:43][%csl LRa6,LRe6]} Rxf4+ {[%emt 0:00:25]} 57. Kg3 {[%emt 0:00:25]} h5 {[%emt 0:02:12]} 58. Rxe6 {[%emt 0:01:03] Hoping for Rd1.} Rg4+ {[%emt 0:01:36]} 59. Kh2 {[%emt 0:00:23] And now Rd1 would win.} Rh4+ {[%emt 0:00:33]} 60. Kg1 {[%emt 0:00:49] aiming for Rd1.} Rg4+ {[%emt 0:04:23]} 61. Kf1 {[%emt 0:00:06] Rd1 is the strong threat.} Rh4 {[%emt 0:01:23]} 62. Rc5 {[%emt 0:00:46]} Rh1+ {[%emt 0:00:16]} 63. Kg2 {[%emt 0:00:03]} Nf4+ {[%emt 0:00:16]} 64. Kxh1 {[%emt 0:00:06]} Nxe6 {[%emt 0:00:25] KR-KN} 65. Rc6 {[%emt 0:00:06][%csl LRa6,LRe6]} Nf4 {[%emt 0:01:02]} 66. Rxa6 {[%emt 0:00:19] White mates.} Nd3 {[%emt 0:00:04]} 67. e6 {[%emt 0:00:47]} Kg6 {[%emt 0:00:04]} 68. Ra8 {[%emt 0:00:37]} Kf6 {[%emt 0:01:40]} 69. a6 {[%emt 0:00:11][%cal Ba5a6,Ba6a7][%mdl 32]} Nxf2+ {[%emt 0:01:48]} 70. Kg2 {[%emt 0:00:05]} Nd3 71. a7 {[%emt 0:00:27]} Nf4+ {[%emt 0:00:35]} 72. Kf1 {[%emt 0:00:27]} Nxe6 {[%emt 0:00:24]} 73. Rc8 {[%emt 0:00:12] Weighted Error Value: White=0.13 (very precise) /Black=0.35} 1-0

[Event "Warsaw Chess Open-B 2022"]
[Site "Warsaw"]
[Date "2022.07.21"]
[Round "4.3"]
[White "Posuniak, Weronika"]
[Black "Arciszewska, Zuzanna"]
[Result "1-0"]
[ECO "A15"]
[WhiteElo "1895"]
[BlackElo "1574"]
[Annotator "NA COMBH RC"]
[PlyCount "129"]
[EventDate "2022.07.18"]
[EventType "swiss"]
[EventCountry "POL"]
[SourceTitle "playchess.com"]
[Source "ChessBase"]
[SourceQuality "1"]
[TimeControl "40/5400+30:1800+30"]

1. c4 {[%emt 0:00:02]} Nf6 {[%emt 0:00:22]} 2. g3 {[%emt 0:00:06]} d5 {[%emt 0:00:46]} 3. Bg2 {[%emt 0:01:42]} e6 {[%emt 0:01:16]} 4. b3 {[%emt 0:02:33]} Be7 {[%emt 0:02:05]} 5. e3 {[%emt 0:04:21]} b6 {[%emt 0:03:15]} 6. Bb2 {[%emt 0:01:19]} Bb7 {[%emt 0:00:55]} 7. Ne2 {[%emt 0:00:33]} Nbd7 {[%emt 0:03:38]} 8. O-O {[%emt 0:01:41]} O-O {[%emt 0:00:32]} 9. Nf4 {[%emt 0:01:44]} c6 {[%emt 0:01:57]} 10. Nc3 {[%emt 0:02:38]} Rb8 {[%emt 0:10:56]} 11. cxd5 {[%emt 0:01:23]} cxd5 {[%emt 0:01:54]} 12. Qe2 {[%emt 0:08:29]} Re8 {[%emt 0:13:11]} 13. Rac1 {[%emt 0:03:55]} a6 {[%emt 0:01:26]} 14. g4 {[%emt 0:13:05]} h6 {[%emt 0:08:54]} 15. Kh1 {[%emt 0:04:15]} Nc5 {[%emt 0:10:19]} 16. d4 {[%emt 0:03:39]} Nce4 {[%emt 0:01:17]} 17. f3 {[%emt 0:02:32]} Nxc3 {[%emt 0:00:52]} 18. Rxc3 {[%emt 0:01:02]} Bd6 {[%emt 0:03:23]} 19. Nd3 {[%emt 0:02:39]} Rc8 {[%emt 0:03:25]} 20. Rxc8 {[%emt 0:01:16]} Qxc8 {[%emt 0:00:07]} 21. f4 {[%emt 0:02:02]} a5 {[%emt 0:01:51]} 22. g5 {[%emt 0:02:29]} hxg5 {[%emt 0:01:12]} 23. fxg5 {[%emt 0:00:07]} Ne4 {[%emt 0:00:34]} 24. Qh5 {[%emt 0:12:07]} g6 {[%emt 0:00:20]} 25. Qh6 {[%emt 0:00:38]} Bf8 {[%emt 0:00:33]} 26. Qh4 {[%emt 0:01:42]} Nd6 {[%emt 0:07:36]} 27. Rc1 {[%emt 0:01:13]} Qd8 {[%emt 0:00:47]} 28. Qf4 {[%emt 0:01:33]} Nf5 {[%emt 0:01:11]} 29. h4 {[%emt 0:03:47]} Bd6 {[%emt 0:00:59]} 30. Ne5 {[%emt 0:00:43]} Bxe5 {[%emt 0:03:10]} 31. dxe5 {[%emt 0:00:48]} Qe7 {[%emt 0:00:44]} 32. Kh2 {[%emt 0:01:24]} Qd7 {[%emt 0:03:08]} 33. Bd4 {[%emt 0:00:47]} b5 {[%emt 0:01:41]} 34. Bb6 {[%emt 0:00:17]} Rc8 {[%emt 0:01:07]} 35. Rxc8+ {[%emt 0:03:17]} Qxc8 {[%emt 0:00:03]} 36. Bxa5 {[%emt 0:01:26]} Qc2 {[%emt 0:00:26]} 37. Kh3 {[%emt 0:02:38]} Qxa2 {[%emt 0:00:24]} 38. b4 {[%emt 0:00:21]} Qb3 {[%emt 0:02:33]} 39. Bb6 {[%emt 0:00:19]} Qd1 {[%emt 0:05:16]} 40. Qf1 {[%emt 0:02:08]} Qa4 {[%emt 0:03:41]} 41. Bc5 {[%emt 0:31:01]} Bc6 {[%emt 0:30:20]} 42. Qc1 {[%emt 0:00:52]} Qb3 {[%emt 0:01:55]} 43. Bf3 {[%emt 0:01:41]} Qa2 {[%emt 0:01:21]} 44. Qe1 {[%emt 0:01:47]} Qb2 {[%emt 0:00:12]} 45. Bd6 {[%emt 0:00:39]} Qb3 {[%emt 0:00:48]} 46. Bc5 {[%emt 0:00:13]} Bd7 {[%emt 0:00:23]} 47. Qa1 {[%emt 0:00:39]} Qa4 {[%emt 0:00:21]} 48. Qc1 {[%emt 0:01:02]} Qb3 {[%emt 0:00:19]} 49. Qa1 {[%emt 0:00:56]} Qa4 {[%emt 0:00:02]} 50. Qc3 {[%emt 0:00:10]} Qa2 {[%emt 0:00:53]} 51. e4 {[%emt 0:00:12]} dxe4 {[%emt 0:00:25]} 52. Bxe4 {[%emt 0:00:01]} Qe2 {[%emt 0:00:15]} 53. Qd3 {[%emt 0:01:03]} Qxd3+ {[%emt 0:00:34]} 54. Bxd3 {[%emt 0:00:04]} Bc6 {[%emt 0:00:01]} 55. Kg4 {[%emt 0:00:34]} Ng7 {[%emt 0:00:26]} 56. Kf4 {[%emt 0:00:57]} Ne8 {[%emt 0:01:10]} 57. Be4 {[%emt 0:01:07]} Bd7 {[%emt 0:00:24]} 58. Ke3 {[%emt 0:00:12]} Nc7 {[%emt 0:00:36]} 59. Kd4 {[%emt 0:00:24]} Nd5 {[%emt 0:00:25]} 60. Bd6 {[%emt 0:01:04]} Nb6 {[%emt 0:00:51]} 61. Bc2 {[%emt 0:01:21]} Na4 {[%emt 0:00:27]} 62. Bxa4 {[%emt 0:00:24]} bxa4 {[%emt 0:00:02]} 63. Kc4 {[%emt 0:00:15]} Bc6 {[%emt 0:01:29]} 64. b5 {[%emt 0:00:13]} Bd5+ {[%emt 0:00:22] 19.34} 65. Kb4 {[%emt 0:00:10]} 1-0

[Event "Warsaw Chess Open-B 2022"]
[Site "Warsaw"]
[Date "2022.07.21"]
[Round "4.4"]
[White "Masnyak, Yuriy"]
[Black "Kaminski, Jan"]
[Result "0-1"]
[ECO "A46"]
[WhiteElo "1432"]
[BlackElo "1870"]
[Annotator "NA RC COMBH"]
[PlyCount "116"]
[EventDate "2022.07.18"]
[EventType "swiss"]
[EventCountry "POL"]
[SourceTitle "playchess.com"]
[Source "ChessBase"]
[SourceQuality "1"]
[TimeControl "40/5400+30:1800+30"]

1. d4 {[%emt 0:00:04]} Nf6 {[%emt 0:00:10]} 2. Nf3 {[%emt 0:00:43]} d5 {[%emt 0:00:26]} 3. g3 {[%emt 0:00:18]} c5 {[%emt 0:00:21]} 4. Bg2 {[%emt 0:00:04]} cxd4 {[%emt 0:00:04]} 5. O-O {[%emt 0:00:06]} e6 {[%emt 0:00:59]} 6. Bf4 {[%emt 0:01:39]} Bc5 {[%emt 0:04:54]} 7. Nbd2 {[%emt 0:02:48]} Nc6 {[%emt 0:01:12]} 8. Nb3 {[%emt 0:00:29]} Bb6 {[%emt 0:00:58]} 9. Nbxd4 {[%emt 0:03:03]} Nxd4 {[%emt 0:02:00]} 10. Nxd4 {[%emt 0:00:37]} O-O {[%emt 0:00:53]} 11. c4 {[%emt 0:02:29]} dxc4 {[%emt 0:04:25]} 12. Nb5 {[%emt 0:04:58]} Nd5 {[%emt 0:07:42]} 13. Bd6 {[%emt 0:05:43]} Re8 {[%emt 0:00:25]} 14. e4 {[%emt 0:00:17]} a6 {[%emt 0:03:55]} 15. Na3 {[%emt 0:08:03]} Qxd6 {[%emt 0:00:43]} 16. exd5 {[%emt 0:00:09]} Qb4 {[%emt 0:03:30]} 17. d6 {[%emt 0:01:09]} Rd8 {[%emt 0:04:15]} 18. Qe2 {[%emt 0:02:07]} c3 {[%emt 0:04:11]} 19. Nc4 {[%emt 0:00:42]} cxb2 {[%emt 0:01:42]} 20. Rab1 {[%emt 0:04:31]} Bd4 {[%emt 0:01:43]} 21. Rfd1 {[%emt 0:00:41]} Bf6 {[%emt 0:01:28]} 22. Nxb2 {[%emt 0:02:27]} Rxd6 {[%emt 0:02:04]} 23. Na4 {[%emt 0:05:20]} Rxd1+ {[%emt 0:01:36]} 24. Qxd1 {[%emt 0:00:24]} Qd4 {[%emt 0:14:17]} 25. Nb6 {[%emt 0:05:38]} Rb8 {[%emt 0:05:32]} 26. Nxc8 {[%emt 0:08:04]} Rxc8 {[%emt 0:05:04]} 27. Bxb7 {[%emt 0:02:48]} Qxd1+ {[%emt 0:01:09]} 28. Rxd1 {[%emt 0:00:06]} Rc2 {[%emt 0:00:20]} 29. Bxa6 {[%emt 0:00:08]} Rxa2 {[%emt 0:00:13]} 30. Bb5 {[%emt 0:00:57]} Rb2 {[%emt 0:00:21]} 31. Bc6 {[%emt 0:00:13]} g6 {[%emt 0:00:51]} 32. Kg2 {[%emt 0:00:36]} Be7 {[%emt 0:00:51]} 33. Rc1 {[%emt 0:00:53]} Bg5 {[%emt 0:00:41]} 34. Rc3 {[%emt 0:01:02]} Bf6 {[%emt 0:00:38]} 35. Rd3 {[%emt 0:00:39]} Be7 {[%emt 0:00:53]} 36. Rc3 {[%emt 0:00:10]} Kg7 {[%emt 0:00:27]} 37. Bd7 {[%emt 0:06:19]} Bb4 {[%emt 0:01:07]} 38. Rc7 {[%emt 0:03:24]} Ba5 {[%emt 0:03:15]} 39. Rc1 {[%emt 0:01:47]} Bb6 {[%emt 0:00:34]} 40. Rf1 {[%emt 0:00:15]} e5 {[%emt 0:00:38]} 41. g4 {[%emt 0:30:54]} e4 {[%emt 0:31:39]} 42. Kg3 {[%emt 0:01:09]} Bc7+ {[%emt 0:01:40]} 43. Kg2 {[%emt 0:00:38]} Kf6 {[%emt 0:06:31]} 44. Ba4 {[%emt 0:04:53]} Kg5 {[%emt 0:02:36]} 45. Rc1 {[%emt 0:02:00]} Be5 {[%emt 0:03:50]} 46. Bc2 {[%emt 0:03:56]} Bf4 {[%emt 0:01:34]} 47. h4+ {[%emt 0:00:17]} Kf6 {[%emt 0:02:50]} 48. Re1 {[%emt 0:00:52]} Rxc2 {[%emt 0:00:09]} 49. Rxe4 {[%emt 0:00:07]} Bd6 {[%emt 0:00:58]} 50. Re3 {[%emt 0:03:42]} h6 {[%emt 0:01:32]} 51. Rf3+ {[%emt 0:00:27]} Kg7 {[%emt 0:00:29]} 52. Kh3 {[%emt 0:00:19]} Bc5 {[%emt 0:00:10]} 53. Kg3 {[%emt 0:00:07]} f6 {[%emt 0:00:29]} 54. Kg2 {[%emt 0:01:38]} Bd4 {[%emt 0:01:18]} 55. Kg3 {[%emt 0:00:39]} Rc3 {[%emt 0:00:09]} 56. Rxc3 {[%emt 0:00:14]} Bxc3 {[%emt 0:00:01]} 57. f4 {[%emt 0:00:19]} Be1+ {[%emt 0:00:43]} 58. Kh3 {[%emt 0:00:08]} h5 {[%emt 0:00:12]} 0-1